bitfinex/quotes_SOLUSD_20241113
["timestamp","ask_amount","ask_price","bid_price","bid_amount"]
[1731456625195,4.7112,212.26,212.2,23.36864839]
[1731456626085,28.07984839,212.26,212.19,23.36864839]
[1731456626265,23.776884,212.25,212.19,23.36864839]
[1731456627080,23.36864839,212.21,212.14,35.15314839]
[1731456627393,23.36864839,212.21,212.13,23.36864839]
[1731456627604,23.36864839,212.21,212.14,23.36864839]
[1731456627792,23.36864839,212.22,212.15,23.36864839]
[1731456627996,23.36864839,212.19,212.12,23.36864839]
[1731456628379,23.36864839,212.18,212.11,23.36864839]
[1731456628598,23.36864839,212.19,212.12,23.36864839]
[1731456629397,23.36864839,212.2,212.13,23.36864839]
[1731456629793,23.36864839,212.2,212.12,28.08284839]
[1731456630101,23.36864839,212.18,212.1,23.36864839]
[1731456630295,23.36864839,212.18,212.09,11.7869]
[1731456630480,23.36864839,212.19,212.12,23.36864839]
[1731456630680,23.776884,212.2,212.13,23.36864839]
[1731456630900,4.7118,212.23,212.19,23.36864839]
[1731456631280,4.7118,212.23,212.17,23.36864839]
[1731456631499,4.7118,212.23,212.16,23.36864839]
[1731456632083,23.36864839,212.21,212.13,35.15374839]
[1731456632295,23.36864839,212.2,212.13,35.15374839]
[1731456632499,23.36864839,212.18,212.11,23.36864839]
[1731456632695,47.14553239,212.19,212.11,23.36864839]
[1731456632896,47.14553239,212.19,212.12,23.36864839]
[1731456633500,4.7129,212.18,212.11,23.36864839]
[1731456633704,23.36864839,212.16,212.08,11.7874]
[1731456634006,23.36864839,212.16,212.09,23.36864839]
[1731456634705,23.36864839,212.14,212.06,23.36864839]
[1731456634915,23.36864839,212.11,212.04,11.7901]
[1731456635088,23.36864839,212.12,212.05,23.36864839]
[1731456635289,43.776884,212.15,212.02,4.7164]
[1731456635513,28.490484,212.15,212.02,11.7913]
[1731456635918,28.490484,212.15,212.08,23.36864839]
[1731456636212,28.490484,212.15,212.02,11.7913]
[1731456636213,23.36864839,212.09,212.02,35.15994839]
[1731456636516,4.7136,212.15,212.02,35.15994839]
[1731456636517,23.36864839,212.1,212.02,23.36864839]
[1731456636701,23.776884,212.09,212.02,23.36864839]
[1731456637095,23.36864839,212.08,212.01,23.36864839]
[1731456637504,24.7154,212.07,212.01,23.36864839]
[1731456637887,28.491984,212.09,212.02,23.36864839]
[1731456638091,20.0,212.12,212.06,23.36864839]
[1731456638287,23.776884,212.14,212.09,23.36864839]
[1731456638595,6.2503,212.16,212.1,23.36864839]
[1731456638798,23.776884,212.15,212.0,0.1]
[1731456639108,23.776884,212.15,212.07,23.36864839]
[1731456639109,23.36864839,212.14,212.07,23.36864839]
[1731456639311,47.14553239,212.13,212.06,23.36864839]
[1731456639508,23.36864839,212.1,212.02,28.08514839]
[1731456639694,23.36864839,212.09,212.02,28.08514839]
[1731456639893,23.36864839,212.09,212.02,23.36864839]
[1731456640416,23.36864839,212.1,212.03,23.36864839]
[1731456640804,23.776884,212.09,212.03,23.36864839]
[1731456641198,43.776884,212.1,212.03,23.36864839]
[1731456641406,4.7149,212.09,212.03,23.36864839]
[1731456642112,4.7149,212.09,212.01,0.12549]
[1731456642113,39.48864839,212.08,212.01,0.12549]
[1731456642696,16.12,212.08,212.02,23.36864839]
[1731456643106,15.1026,212.14,212.07,23.36864839]
[1731456643312,15.1026,212.14,212.11,23.36864839]
[1731456643507,15.1026,212.14,212.13,23.36864839]
[1731456643817,20.3642,212.19,212.13,23.36864839]
[1731456644014,23.36864839,212.17,212.1,23.36864839]
[1731456644402,43.73284839,212.19,212.12,23.36864839]
[1731456644718,43.73284839,212.19,212.04,0.1]
[1731456644719,15.6515,212.19,212.14,23.36864839]
[1731456645031,26.3895,212.27,212.18,23.36864839]
[1731456645198,26.3895,212.27,212.2,23.36864839]
[1731456645397,23.36864839,212.25,212.17,23.36864839]
[1731456645619,23.36864839,212.21,212.14,11.7843]
[1731456645922,0.12549,212.24,212.13,28.08264839]
[1731456645923,23.36864839,212.2,212.13,23.36864839]
[1731456646421,47.14553239,212.2,212.13,23.36864839]
[1731456646619,23.36864839,212.16,212.09,11.7869]
[1731456646918,23.36864839,212.12,212.04,39.87454839]
[1731456647102,23.36864839,212.12,212.05,23.36864839]
[1731456647305,47.14553239,212.14,212.06,23.36864839]
[1731456647508,47.14553239,212.14,212.04,16.5059]
[1731456647509,23.776884,212.14,212.07,23.36864839]
[1731456647925,47.14553239,212.14,212.06,23.36864839]
[1731456648222,23.36864839,212.13,212.06,23.36864839]
[1731456649022,28.08284839,212.13,212.06,28.08414839]
[1731456649204,24.7142,212.13,212.06,28.08414839]
[1731456649410,22.0061,212.15,212.11,23.36864839]
[1731456649813,22.0061,212.15,212.09,23.36864839]
[1731456650006,22.0061,212.15,212.1,23.36864839]
[1731456650824,22.0061,212.15,212.09,23.36864839]
[1731456651016,22.0061,212.15,212.11,23.36864839]
[1731456651219,15.7765,212.15,212.12,23.36864839]
[1731456652624,23.776884,212.19,212.13,23.36864839]
[1731456653509,28.489684,212.19,212.13,23.36864839]
[1731456653733,28.489684,212.19,212.1,23.36864839]
[1731456653734,23.36864839,212.18,212.1,23.36864839]
[1731456653904,23.776884,212.17,212.1,23.36864839]
[1731456654407,16.0577,212.2,212.15,23.36864839]
[1731456654622,16.0577,212.2,212.16,23.36864839]
[1731456654939,15.0906,212.25,212.19,23.36864839]
[1731456655109,15.0906,212.25,212.24,23.36864839]
[1731456655308,15.0906,212.25,212.14,20.12549]
[1731456655625,15.0906,212.25,212.23,23.36864839]
[1731456655809,15.0906,212.25,212.19,23.36864839]
[1731456656012,23.36864839,212.24,212.16,23.36864839]
[1731456656217,23.36864839,212.22,212.15,23.36864839]
[1731456656505,23.36864839,212.23,212.15,23.36864839]
[1731456656714,47.14553239,212.24,212.16,23.36864839]
[1731456657227,23.36864839,212.22,212.15,23.36864839]
[1731456657525,23.776884,212.21,212.14,23.36864839]
[1731456657712,47.14553239,212.22,212.15,23.36864839]
[1731456658028,23.36864839,212.18,212.11,23.36864839]
[1731456658205,23.776884,212.18,212.11,23.36864839]
[1731456658724,23.36864839,212.2,212.1,16.5015]
[1731456658926,4.712,212.22,212.15,23.36864839]
[1731456659523,28.08064839,212.22,212.15,23.36864839]
[1731456659716,4.712,212.22,212.14,23.36864839]
[1731456659924,23.36864839,212.21,212.14,23.36864839]
[1731456660103,23.36864839,212.22,212.15,23.36864839]
[1731456660424,23.36864839,212.23,212.15,23.36864839]
[1731456660611,47.14553239,212.19,212.11,23.36864839]
[1731456661011,23.776884,212.2,212.15,23.36864839]
[1731456661216,28.08034839,212.24,212.16,23.36864839]
[1731456661418,23.776884,212.23,212.15,23.36864839]
[1731456661706,47.14553239,212.23,212.15,23.36864839]
[1731456661909,4.712,212.22,212.15,28.08224839]
[1731456662602,15.0906,212.25,212.21,23.36864839]
[1731456662822,15.0906,212.25,212.24,23.36864839]
[1731456663129,4.7116,212.24,212.16,0.12549]
[1731456663709,0.22549,212.23,212.16,0.12549]
[1731456663931,23.776884,212.21,212.16,0.12549]
[1731456664144,23.776884,212.19,212.16,0.12549]
[1731456664317,23.36864839,212.18,212.16,0.12549]
[1731456664524,23.36864839,212.17,212.16,0.12549]
[1731456665442,95.28572239,212.17,212.01,0.12549]
[1731456665639,23.36864839,212.08,212.01,0.12549]
[1731456665845,23.36864839,212.12,212.05,23.36864839]
[1731456666033,23.36864839,212.14,212.07,23.36864839]
[1731456666348,27.9147,212.17,212.01,4.84209]
[1731456666349,23.2015,212.17,212.04,0.1]
[1731456666530,16.5872,212.17,212.07,0.1]
[1731456666850,4.7124,212.21,212.07,0.2]
[1731456667049,6.4695,212.22,212.08,43.776884]
[1731456667227,6.4695,212.22,212.11,0.1]
[1731456667421,15.4758,212.23,212.21,23.36864839]
[1731456667625,15.4758,212.23,212.19,23.36864839]
[1731456668152,15.4758,212.23,212.2,23.36864839]
[1731456668439,15.4758,212.23,212.19,23.36864839]
[1731456668939,16.1177,212.28,212.22,23.36864839]
[1731456669148,6.1577,212.38,212.27,23.36864839]
[1731456669331,16.1177,212.4,212.35,23.36864839]
[1731456669536,16.1177,212.4,212.36,23.36864839]
[1731456669924,16.1177,212.4,212.38,23.36864839]
[1731456670441,15.6705,212.47,212.39,23.36864839]
[1731456670653,15.6705,212.47,212.43,23.36864839]
[1731456670826,15.6705,212.47,212.42,23.36864839]
[1731456671427,23.36864839,212.44,212.37,23.36864839]
[1731456671646,23.36864839,212.4,212.33,23.36864839]
[1731456671951,23.36864839,212.41,212.33,23.36864839]
[1731456672152,23.36864839,212.4,212.33,23.36864839]
[1731456672540,23.36864839,212.41,212.33,23.36864839]
[1731456672959,23.36864839,212.38,212.32,23.36864839]
[1731456673144,23.36864839,212.38,212.25,0.1]
[1731456673145,23.36864839,212.33,212.26,23.36864839]
[1731456673340,23.36864839,212.36,212.28,23.36864839]
[1731456673561,23.36864839,212.36,212.29,23.36864839]
[1731456673747,0.12549,212.4,212.27,23.36864839]
[1731456673748,23.36864839,212.35,212.27,23.36864839]
[1731456673953,0.22549,212.4,212.25,35.14704839]
[1731456674163,23.36864839,212.32,212.25,35.14704839]
[1731456674540,23.36864839,212.34,212.26,23.36864839]
[1731456674738,23.36864839,212.36,212.29,23.36864839]
[1731456674961,20.0,212.36,212.3,23.36864839]
[1731456675152,23.36864839,212.38,212.31,23.36864839]
[1731456675353,23.36864839,212.36,212.28,23.36864839]
[1731456675669,23.36864839,212.33,212.25,35.14704839]
[1731456675960,23.36864839,212.29,212.21,23.36864839]
[1731456676161,15.7794,212.33,212.2,4.7124]
[1731456676162,20.0,212.31,212.2,4.7124]
[1731456676374,23.36864839,212.32,212.24,23.36864839]
[1731456676549,23.36864839,212.32,212.25,23.36864839]
[1731456676745,28.07904839,212.3,212.23,23.36864839]
[1731456676945,23.36864839,212.29,212.21,23.36864839]
[1731456677165,23.36864839,212.28,212.2,35.14994839]
[1731456677470,51.85543239,212.32,212.25,23.36864839]
[1731456677666,15.7794,212.33,212.21,0.1]
[1731456677847,6.1516,212.37,212.23,0.1]
[1731456677848,4.709,212.36,212.23,0.1]
[1731456678048,10.8604,212.37,212.2,40.1564]
[1731456678243,10.8604,212.37,212.2,40.0564]
[1731456678554,10.8604,212.37,212.21,23.876884]
[1731456678758,10.8604,212.37,212.21,23.776884]
[1731456678960,23.36864839,212.36,212.28,23.36864839]
[1731456679191,23.36864839,212.35,212.28,23.36864839]
[1731456679384,23.36864839,212.33,212.25,23.36864839]
[1731456679676,23.36864839,212.33,212.22,16.52369303]
[1731456679677,23.36864839,212.34,212.27,23.36864839]
[1731456679854,23.776884,212.34,212.28,23.36864839]
[1731456680161,47.14553239,212.36,212.28,23.36864839]
[1731456680378,4.7092,212.35,212.28,23.36864839]
[1731456680551,4.7092,212.35,212.22,11.81169303]
[1731456680552,23.776884,212.36,212.31,23.36864839]
[1731456680864,23.776884,212.36,212.3,23.36864839]
[1731456681066,23.36864839,212.34,212.26,23.36864839]
[1731456681270,23.36864839,212.28,212.25,0.12549]
[1731456681460,23.36864839,212.27,212.25,0.12549]
[1731456682459,28.07964839,212.27,212.25,0.12549]
[1731456682744,28.07964839,212.27,212.09,6.2874]
[1731456682745,73.42983239,212.26,212.14,23.36864839]
[1731456682967,23.36864839,212.2,212.13,11.7849]
[1731456683151,43.36864839,212.22,212.15,23.36864839]
[1731456683347,43.36864839,212.22,212.14,23.36864839]
[1731456684649,23.36864839,212.2,212.12,23.36864839]
[1731456684855,4.7123,212.21,212.07,0.0315153]
[1731456684856,43.776884,212.15,212.07,0.0315153]
[1731456685065,38.0919417,212.12,212.04,38.0919417]
[1731456685977,4.7145,212.11,212.04,38.0919417]
[1731456686150,38.0919417,212.1,212.04,38.0919417]
[1731456686661,20.0,212.09,212.03,11.7904]
[1731456686854,20.0,212.09,212.02,38.0919417]
[1731456687554,38.0919417,212.1,212.02,42.8082417]
[1731456687972,38.0919417,212.06,212.01,0.12549]
[1731456688390,38.0919417,212.04,212.01,0.12549]
[1731456689753,24.7163,212.03,212.01,0.12549]
[1731456689956,58.0919417,212.02,212.01,0.12549]
[1731456690155,81.9943157,212.02,212.01,0.12549]
[1731456690465,6.76109,212.01,211.95,0.4658981]
[1731456690666,20.0,211.96,211.95,0.4658981]
[1731456691073,24.7178,211.96,211.95,0.4658981]
[1731456691781,38.0919417,212.0,211.95,0.4658981]
[1731456692492,6.6356,212.01,211.95,38.5578398]
[1731456692770,38.0919417,211.97,211.95,0.4658981]
[1731456693173,38.0919417,211.96,211.95,0.4658981]
[1731456693678,58.0919417,211.96,211.95,0.4658981]
[1731456694472,62.8097417,211.96,211.95,0.4658981]
[1731456694855,86.5866257,211.96,211.95,0.4658981]
[1731456695670,86.7121157,211.96,211.95,0.4658981]
[1731456696469,86.5866257,211.96,211.95,0.4658981]
[1731456697285,86.5866257,211.96,211.87,0.12549]
[1731456697286,0.12549,211.93,211.87,0.12549]
[1731456697479,58.2174317,211.88,211.87,0.12549]
[1731456697796,38.0919417,211.77,211.73,0.4658981]
[1731456697956,20.0,211.76,211.73,0.4658981]
[1731456698879,20.0,211.77,211.73,0.4658981]
[1731456699077,6.4423,211.78,211.73,0.4658981]
[1731456699257,58.0919417,211.77,211.73,0.4658981]
[1731456699460,38.0919417,211.76,211.73,0.4658981]
[1731456699674,20.0,211.77,211.73,0.4658981]
[1731456700776,15.4996,211.8,211.74,38.0919417]
[1731456700977,15.4996,211.8,211.73,0.4658981]
[1731456700978,15.4996,211.8,211.75,38.0919417]
[1731456701176,15.4996,211.8,211.73,0.4658981]
[1731456701177,38.0919417,211.79,211.73,0.4658981]
[1731456701781,15.4996,211.8,211.74,38.0919417]
[1731456702491,15.4996,211.8,211.75,38.0919417]
[1731456702787,15.4996,211.8,211.75,42.8142417]
[1731456702983,6.29469,211.85,211.75,42.8142417]
[1731456702984,38.0919417,211.84,211.75,11.8063]
[1731456703164,0.12549,211.84,211.73,0.4658981]
[1731456703368,0.22549,211.84,211.73,0.4658981]
[1731456703979,38.0919417,211.74,211.73,0.4658981]
[1731456704160,81.8688257,211.74,211.73,0.4658981]
[1731456705063,86.7170157,211.74,211.73,0.4658981]
[1731456705271,86.7170157,211.74,211.71,0.03156889]
[1731456705272,43.902374,211.72,211.71,0.03156889]
[1731456705472,81.9943157,211.72,211.71,0.03156889]
[1731456706191,20.0,211.68,211.59,38.0919417]
[1731456706372,38.0919417,211.66,211.59,38.0919417]
[1731456706773,38.0919417,211.64,211.57,38.0919417]
[1731456706992,42.8172417,211.63,211.56,38.0919417]
[1731456707162,58.2174317,211.62,211.55,0.03159277]
[1731456707499,20.0,211.58,211.55,0.03159277]
[1731456707785,38.0919417,211.56,211.52,0.4658981]
[1731456707989,38.0919417,211.58,211.52,0.4658981]
[1731456708285,38.0919417,211.56,211.52,0.4658981]
[1731456708693,20.0,211.57,211.52,38.5578398]
[1731456708990,66.5954257,211.57,211.52,0.4658981]
[1731456709403,38.0919417,211.56,211.52,0.4658981]
[1731456710085,66.5954257,211.57,211.52,0.4658981]
[1731456710590,59.1677417,211.61,211.54,38.0919417]
[1731456710794,20.0,211.59,211.53,38.0919417]
[1731456712204,58.0919417,211.59,211.52,38.5578398]
[1731456712801,58.0919417,211.59,211.53,38.0919417]
[1731456712982,6.3089,211.66,211.53,38.0919417]
[1731456712983,44.4008417,211.66,211.58,38.0919417]
[1731456713189,38.0919417,211.65,211.58,38.0919417]
[1731456713489,6.3089,211.66,211.55,38.0919417]
[1731456713686,0.12549,211.65,211.52,0.4658981]
[1731456713981,38.0919417,211.62,211.55,38.0919417]
[1731456714191,38.0919417,211.65,211.58,38.0919417]
[1731456714393,38.2174317,211.64,211.57,38.0919417]
[1731456714706,38.0919417,211.63,211.56,38.0919417]
[1731456714888,61.8688257,211.64,211.57,38.0919417]
[1731456715205,23.776884,211.65,211.59,38.0919417]
[1731456715380,20.0,211.64,211.59,38.0919417]
[1731456715582,38.0919417,211.66,211.58,38.0919417]
[1731456715786,38.2174317,211.63,211.56,38.0919417]
[1731456716501,23.902374,211.63,211.58,38.0919417]
[1731456716806,0.12549,211.63,211.57,38.0919417]
[1731456717007,54.4056417,211.68,211.61,38.0919417]
[1731456717185,54.4056417,211.68,211.6,38.0919417]
[1731456717386,0.12549,211.67,211.6,38.0919417]
[1731456717703,0.12549,211.67,211.61,38.0919417]
[1731456718086,16.3137,211.68,211.56,0.1]
[1731456718293,6.6038,211.71,211.56,0.1]
[1731456718294,6.6038,211.71,211.65,38.0919417]
[1731456718507,6.6038,211.71,211.53,44.5088417]
[1731456718508,38.0919417,211.68,211.6,38.0919417]
[1731456718808,6.6038,211.71,211.54,0.03159426]
[1731456719101,0.12549,211.7,211.53,6.4169]
[1731456719281,0.12549,211.63,211.58,38.0919417]
[1731456719607,61.8688257,211.66,211.59,38.0919417]
[1731456719905,61.8688257,211.64,211.56,38.0919417]
[1731456720093,20.0,211.65,211.58,38.0919417]
[1731456720305,38.0919417,211.66,211.6,38.0919417]
[1731456720306,20.12549,211.66,211.6,38.0919417]
[1731456720493,20.12549,211.66,211.52,0.4658981]
[1731456720494,0.12549,211.63,211.56,38.0919417]
[1731456720805,61.9943157,211.63,211.56,38.0919417]
[1731456721007,58.2174317,211.61,211.54,38.0919417]
[1731456721303,38.0919417,211.58,211.52,0.4658981]
[1731456721509,20.0,211.59,211.52,38.5578398]
[1731456721690,15.533,211.62,211.56,38.0919417]
[1731456721883,15.533,211.62,211.58,38.0919417]
[1731456722507,0.12549,211.61,211.54,38.0919417]
[1731456722693,38.0919417,211.6,211.52,38.5578398]
[1731456723298,61.8688257,211.59,211.52,38.5578398]
[1731456723504,38.0919417,211.59,211.52,38.5578398]
[1731456724012,58.0919417,211.57,211.52,0.4658981]
[1731456724786,23.70032671,211.56,211.52,0.4658981]
[1731456724986,67.47721071,211.53,211.52,0.4658981]
[1731456726918,20.12549,211.53,211.52,0.4658981]
[1731456727097,20.0,211.53,211.52,0.4658981]
[1731456727291,23.57483671,211.57,211.52,0.4658981]
[1731456727491,6.1051,211.59,211.52,0.4658981]
[1731456727718,23.70032671,211.55,211.52,0.4658981]
[1731456727896,23.57483671,211.55,211.52,0.4658981]
[1731456728518,0.12549,211.54,211.52,0.4658981]
[1731456728704,67.47721071,211.53,211.52,0.4658981]
[1731456728895,0.12549,211.53,211.52,0.4658981]
[1731456729212,20.12549,211.53,211.52,0.4658981]
[1731456729710,23.776884,211.57,211.52,0.4658981]
[1731456729917,23.57483671,211.54,211.52,0.4658981]
[1731456730118,47.47721071,211.53,211.52,0.4658981]
[1731456730424,0.12549,211.53,211.52,0.4658981]
[1731456730600,6.1051,211.59,211.52,24.04073481]
[1731456731112,6.1051,211.59,211.52,0.4658981]
[1731456731113,0.12549,211.58,211.52,0.4658981]
[1731456731410,0.12549,211.52,211.36,0.2]
[1731456731820,0.12549,211.52,211.46,23.57483671]
[1731456732319,20.0,211.52,211.48,23.57483671]
[1731456733696,16.5157,211.53,211.48,23.57483671]
[1731456734120,20.0,211.52,211.48,23.57483671]
[1731456735114,23.902374,211.51,211.44,23.57483671]
[1731456735488,0.12549,211.49,211.44,23.57483671]
[1731456736899,20.0,211.48,211.41,23.57483671]
[1731456737488,20.0,211.48,211.45,23.57483671]
[1731456737903,40.09053671,211.53,211.46,23.57483671]
[1731456738094,20.12549,211.5,211.44,23.57483671]
[1731456738800,20.12549,211.51,211.44,23.57483671]
[1731456738999,20.12549,211.51,211.46,23.57483671]
[1731456739212,16.5157,211.53,211.48,23.57483671]
[1731456739714,16.5157,211.53,211.46,23.57483671]
[1731456739916,23.57483671,211.52,211.44,23.57483671]
[1731456740100,23.57483671,211.5,211.41,23.57483671]
[1731456740416,23.57483671,211.5,211.42,23.57483671]
[1731456740709,23.57483671,211.5,211.43,23.57483671]
[1731456740912,23.57483671,211.44,211.31,6.3352]
[1731456741088,43.776884,211.48,211.38,23.57483671]
[1731456741294,0.12549,211.45,211.38,23.57483671]
[1731456741493,23.70032671,211.45,211.38,23.57483671]
[1731456742504,20.0,211.46,211.4,23.57483671]
[1731456742702,30.13273671,211.49,211.41,23.57483671]
[1731456742901,23.70032671,211.47,211.4,23.57483671]
[1731456743723,20.0,211.48,211.42,23.57483671]
[1731456746813,20.0,211.48,211.41,23.57483671]
[1731456747815,20.0,211.48,211.4,23.57483671]
[1731456747816,43.57483671,211.48,211.4,23.57483671]
[1731456748014,0.12549,211.44,211.37,23.57483671]
[1731456748206,23.70032671,211.44,211.37,23.57483671]
[1731456750818,23.776884,211.47,211.41,23.57483671]
[1731456752605,23.57483671,211.43,211.37,23.57483671]
[1731456752799,23.57483671,211.43,211.35,23.57483671]
[1731456754709,20.0,211.45,211.3,0.5658981]
[1731456754710,23.57483671,211.41,211.33,23.57483671]
[1731456755407,23.57483671,211.39,211.32,23.57483671]
[1731456755610,38.71313671,211.41,211.33,23.57483671]
[1731456756225,23.57483671,211.37,211.3,24.04073481]
[1731456756522,20.12549,211.38,211.3,0.4658981]
[1731456756523,23.57483671,211.34,211.3,0.4658981]
[1731456757112,23.57483671,211.33,211.3,0.4658981]
[1731456757312,0.12549,211.32,211.3,0.4658981]
[1731456757514,20.12549,211.32,211.21,6.5084]
[1731456757730,20.12549,211.32,211.26,23.57483671]
[1731456758319,0.12549,211.32,211.27,23.57483671]
[1731456758509,20.12549,211.33,211.27,23.57483671]
[1731456759326,23.57483671,211.36,211.29,23.57483671]
[1731456759528,43.57483671,211.35,211.28,23.57483671]
[1731456760033,23.57483671,211.34,211.27,23.57483671]
[1731456760221,43.57483671,211.35,211.28,23.57483671]
[1731456761330,20.0,211.35,211.29,23.57483671]
[1731456762133,23.57483671,211.39,211.32,23.57483671]
[1731456762329,23.57483671,211.39,211.33,23.57483671]
[1731456763033,23.57483671,211.4,211.33,23.57483671]
[1731456763341,23.57483671,211.39,211.32,23.57483671]
[1731456763710,0.12549,211.37,211.31,23.57483671]
[1731456764524,23.57483671,211.39,211.32,23.57483671]
[1731456764720,23.57483671,211.38,211.31,23.57483671]
[1731456766432,23.57483671,211.34,211.27,23.57483671]
[1731456766744,23.57483671,211.35,211.28,23.57483671]
[1731456767335,23.57483671,211.33,211.26,23.57483671]
[1731456767523,23.57483671,211.34,211.26,23.57483671]
[1731456767727,23.57483671,211.35,211.28,23.57483671]
[1731456768034,23.57483671,211.34,211.27,23.57483671]
[1731456769322,23.57483671,211.33,211.26,23.57483671]
[1731456769533,23.57483671,211.33,211.27,23.57483671]
[1731456769738,23.57483671,211.34,211.27,23.57483671]
[1731456770117,23.57483671,211.36,211.29,23.57483671]
[1731456770732,23.57483671,211.37,211.3,23.57483671]
[1731456770932,23.57483671,211.38,211.31,23.57483671]
[1731456771137,23.57483671,211.36,211.29,23.57483671]
[1731456772239,23.57483671,211.36,211.23,20.0]
[1731456772240,23.57483671,211.32,211.25,23.57483671]
[1731456772648,23.57483671,211.33,211.26,23.57483671]
[1731456773324,23.776884,211.25,211.09,0.4658981]
[1731456773524,23.776884,211.25,211.11,0.08511135]
[1731456773525,23.57483671,211.14,211.11,0.08511135]
[1731456773722,23.57483671,211.18,211.09,0.4658981]
[1731456773929,27.34895967,211.24,211.09,0.4658981]
[1731456774129,21.7046,211.26,211.14,0.1]
[1731456774323,21.7046,211.26,211.12,0.1]
[1731456774634,21.7046,211.26,211.12,0.2]
[1731456774943,15.4872,211.26,211.11,5.84999]
[1731456775244,0.1,211.25,211.19,23.57483671]
[1731456775540,15.4872,211.26,211.19,23.57483671]
[1731456775728,23.67483671,211.27,211.19,23.57483671]
[1731456777737,23.67483671,211.3,211.22,23.57483671]
[1731456777933,6.3174,211.31,211.25,23.57483671]
[1731456777934,0.1,211.31,211.25,23.57483671]
[1731456779446,23.77483671,211.31,211.26,4.7335]
[1731456779646,23.67483671,211.31,211.26,4.7335]
[1731456779947,0.1,211.31,211.26,16.5672]
[1731456780126,23.57483671,211.3,211.26,16.5672]
[1731456780325,0.1,211.31,211.26,16.5672]
[1731456780935,0.2,211.27,211.22,4.7343]
[1731456781147,0.1,211.27,211.22,4.7343]
[1731456781329,23.57483671,211.29,211.22,11.836]
[1731456781529,39.16203671,211.33,211.26,23.57483671]
[1731456781738,0.1,211.31,211.27,23.57483671]
[1731456781955,23.77483671,211.37,211.3,23.57483671]
[1731456782133,0.1,211.37,211.23,23.902374]
[1731456782458,0.1,211.37,211.33,23.57483671]
[1731456782631,15.3326,211.39,211.34,23.57483671]
[1731456782832,0.1,211.37,211.34,23.57483671]
[1731456783127,23.67483671,211.42,211.35,23.57483671]
[1731456783336,0.1,211.42,211.37,23.57483671]
[1731456783554,0.1,211.42,211.26,0.12549]
[1731456783555,23.77483671,211.42,211.34,23.57483671]
[1731456784050,23.77483671,211.42,211.3,23.57483671]
[1731456784051,23.57483671,211.37,211.3,23.57483671]
[1731456784230,23.57483671,211.33,211.26,43.57483671]
[1731456784546,23.67483671,211.31,211.25,16.568]
[1731456784851,0.1,211.29,211.25,16.568]
[1731456785042,23.77483671,211.31,211.25,16.568]
[1731456785235,23.77483671,211.29,211.25,11.8343]
[1731456785449,23.77483671,211.29,211.22,4.7342]
[1731456785654,0.1,211.29,211.22,28.30903671]
[1731456786241,23.77483671,211.31,211.23,23.57483671]
[1731456787140,23.77483671,211.31,211.24,16.5687]
[1731456788448,0.1,211.29,211.24,16.5687]
[1731456788651,23.67483671,211.31,211.24,16.5687]
[1731456788652,23.77483671,211.31,211.24,16.5687]
[1731456790334,15.3326,211.33,211.24,16.5687]
[1731456790335,0.1,211.33,211.27,23.57483671]
[1731456790638,0.2,211.35,211.29,23.57483671]
[1731456790841,0.1,211.37,211.32,23.57483671]
[1731456791041,16.6314,211.38,211.25,0.12549]
[1731456791354,23.67483671,211.41,211.25,0.12549]
[1731456791355,0.2,211.41,211.36,23.57483671]
[1731456791528,0.2,211.39,211.29,20.0]
[1731456791733,0.1,211.35,211.29,23.57483671]
[1731456791947,23.67483671,211.4,211.31,23.57483671]
[1731456792242,23.67483671,211.4,211.33,23.57483671]
[1731456792243,0.1,211.4,211.33,23.57483671]
[1731456792834,0.1,211.39,211.33,23.57483671]
[1731456793050,23.67483671,211.36,211.3,16.5641]
[1731456793253,0.2,211.31,211.25,11.8339]
[1731456793635,23.57483671,211.28,211.23,4.734]
[1731456794233,16.6314,211.33,211.24,23.57483671]
[1731456794234,0.2,211.31,211.24,23.57483671]
[1731456794456,0.2,211.31,211.23,16.5694]
[1731456794457,0.1,211.28,211.23,16.5694]
[1731456796650,0.1,211.29,211.23,16.5694]
[1731456797454,0.1,211.27,211.2,40.14663671]
[1731456797758,0.2,211.29,211.22,23.57483671]
[1731456798137,0.1,211.27,211.22,23.57483671]
[1731456798340,0.1,211.27,211.2,40.14663671]
[1731456798649,0.1,211.28,211.22,23.57483671]
[1731456798957,0.1,211.24,211.2,16.5718]
[1731456799357,23.67483671,211.24,211.17,23.57483671]
[1731456799555,23.67483671,211.24,211.13,23.57483671]
[1731456799556,0.1,211.19,211.13,23.57483671]
[1731456799763,0.2,211.21,211.15,23.57483671]